bitfinex-derivatives/quotes_BNBF0:USTF0_20250523
["timestamp","ask_amount","ask_price","bid_price","bid_amount"]
[1748040568753,0.30295226,660.17,659.28,1.4286041]
[1748040568954,1.08562833,660.16,659.31,1.4286041]
[1748040569153,0.30295226,660.17,659.31,1.4286041]
[1748040569351,1.08591881,660.16,659.31,1.4286041]
[1748040569554,1.08591881,660.15,659.31,1.4286041]
[1748040569752,0.30295226,660.17,659.31,1.4286041]
[1748040569954,1.08591003,660.16,659.31,1.4286041]
[1748040570149,1.08623174,660.15,659.31,1.4286041]
[1748040570354,1.08623174,660.14,659.31,1.4286041]
[1748040570555,1.08623174,660.13,659.31,1.4286041]
[1748040570754,0.30295226,660.17,659.31,1.4286041]
[1748040570951,1.08623313,660.16,659.31,1.4286041]
[1748040571154,1.08623313,660.15,659.31,1.4286041]
[1748040571355,1.08623313,660.14,659.31,1.4286041]
[1748040571556,0.30295226,660.17,659.31,1.4286041]
[1748040571557,1.08623313,660.13,659.31,1.4286041]
[1748040571754,1.08623313,660.12,659.31,1.4286041]
[1748040571956,1.08623313,660.11,659.31,1.4286041]
[1748040572151,1.08679339,660.1,659.31,1.4286041]
[1748040572355,0.30295226,660.17,659.31,1.4286041]
[1748040572557,1.55390617,660.16,659.31,1.4286041]
[1748040572752,1.11581188,660.14,659.38,1.4286041]
[1748040572953,1.08681585,660.13,659.38,1.4286041]
[1748040573156,1.08681585,660.12,659.38,1.4286041]
[1748040573455,1.08681585,660.11,659.38,1.4286041]
[1748040573653,1.08681585,660.1,659.38,1.4286041]
[1748040573855,1.08681585,660.09,659.38,1.4286041]
[1748040574051,1.08681585,660.08,659.38,1.4286041]
[1748040574253,1.11581188,660.14,659.38,1.4286041]
[1748040574455,1.08710245,660.13,659.38,1.4286041]
[1748040574654,1.08710245,660.12,659.38,1.4286041]
[1748040574852,1.08710245,660.11,659.38,1.4286041]
[1748040575053,1.08709418,660.1,659.38,1.4286041]
[1748040575260,1.08709418,660.09,659.38,1.4286041]
[1748040575557,1.08712696,660.08,659.38,1.4286041]
[1748040575754,1.08712696,660.07,659.38,1.4286041]
[1748040575955,1.08712696,660.07,658.71,0.30362374]
[1748040575956,1.11581188,660.13,659.34,1.4286041]
[1748040576156,1.08713124,660.12,659.34,1.4286041]
[1748040576353,1.08713124,660.11,659.34,1.4286041]
[1748040576557,1.55435142,660.1,659.34,1.4286041]
[1748040576856,1.55435142,660.09,659.34,1.4286041]
[1748040577053,1.55435142,660.08,659.34,1.4286041]
[1748040577254,1.55435142,660.07,659.34,1.4286041]
[1748040577452,1.55435142,660.06,659.34,1.4286041]
[1748040577657,1.55435142,660.05,659.34,1.4286041]
[1748040577960,1.55435142,660.04,659.34,1.4286041]
[1748040578255,1.55435421,660.03,659.34,1.4286041]
[1748040578459,1.55434414,660.02,659.34,1.4286041]
[1748040578659,1.08713124,660.01,659.34,1.4286041]
[1748040578855,1.08713124,660.0,659.34,1.4286041]
[1748040579061,1.0862483,659.99,659.2,1.4286041]
[1748040579260,1.0862483,659.98,659.2,1.4286041]
[1748040579458,1.0862483,659.97,659.2,1.4286041]
[1748040579662,1.0862483,659.96,659.2,1.4286041]
[1748040579957,1.11581188,660.04,659.2,1.4286041]
[1748040580163,1.55348782,660.03,659.2,1.4286041]
[1748040580363,1.55348782,660.02,659.2,1.4286041]
[1748040580563,1.55348782,660.01,659.2,1.4286041]
[1748040580863,1.08618292,660.0,659.2,1.4286041]
[1748040581062,1.08618292,659.99,659.2,1.4286041]
[1748040581257,1.08618292,659.98,659.2,1.4286041]
[1748040581461,1.08618292,659.97,659.18,1.4286041]
[1748040581659,1.08618292,659.96,659.18,1.4286041]
[1748040581964,1.08618292,659.95,659.18,1.4286041]
[1748040582164,1.08615929,659.94,659.18,1.4286041]
[1748040582358,1.08615929,659.93,659.18,1.4286041]
[1748040582560,1.08615929,659.92,659.18,1.4286041]
[1748040582764,1.55326138,659.91,659.18,1.4286041]
[1748040582962,1.55326138,659.9,659.18,1.4286041]
[1748040583163,1.55326138,659.89,659.18,1.4286041]
[1748040583360,1.55326138,659.88,659.18,1.4286041]
[1748040583560,1.55326138,659.87,659.18,1.4286041]
[1748040583761,1.55326138,659.86,659.18,1.4286041]
[1748040584060,1.55326138,659.85,659.18,1.4286041]
[1748040584265,1.85636516,659.84,659.18,1.4286041]
[1748040584564,1.55326138,659.83,659.18,1.4286041]
[1748040584759,1.55326138,659.82,659.18,1.4286041]
[1748040584962,1.11581188,660.04,659.18,1.4286041]
[1748040584963,1.85637894,659.81,659.18,1.4286041]
[1748040585167,1.11581188,659.72,658.93,1.4286041]
[1748040585465,1.55200195,659.71,658.93,1.4286041]
[1748040585665,1.55200195,659.7,658.93,1.4286041]
[1748040585865,1.55200195,659.69,658.93,1.4286041]
[1748040586062,1.55200195,659.68,658.93,1.4286041]
[1748040586265,1.54885548,659.67,658.93,1.4286041]
[1748040586458,1.85204197,659.66,658.93,1.4286041]
[1748040586662,1.38618601,659.65,658.93,1.4286041]
[1748040586862,1.38619061,659.64,658.93,1.4286041]
[1748040587066,1.3861952,659.63,658.93,1.4286041]
[1748040587266,1.3861998,659.62,658.93,1.4286041]
[1748040587462,1.3862044,659.61,658.93,1.4286041]
[1748040587661,0.30321406,659.6,658.93,1.4286041]
[1748040589269,0.30321406,659.6,658.8,2.13178245]
[1748040589270,0.30321406,659.6,658.55,1.4286041]
[1748040592072,0.30321406,659.6,658.61,1.4286041]
[1748040596473,0.30321406,659.6,658.44,2.13178245]
[1748040596474,0.30321406,659.6,658.7,1.4286041]
[1748040602379,0.30321406,659.6,658.65,1.4286041]
[1748040605584,0.30321406,659.6,658.57,1.4286041]
[1748040608288,0.30321406,659.6,658.67,1.4286041]
[1748040608788,1.11581188,660.11,658.67,1.4286041]
[1748040608988,1.38251162,660.1,658.67,1.4286041]
[1748040609189,1.38251621,660.09,658.67,1.73224628]
[1748040609489,1.3825208,660.08,658.67,1.73224628]
[1748040609787,1.38252539,660.07,658.68,0.30363757]
[1748040609990,1.38252998,660.06,658.68,0.30363757]
[1748040610187,0.30300734,660.05,658.68,0.30363757]
[1748040611191,0.30300734,660.05,658.9,1.4286041]
[1748040613693,0.30300734,660.05,658.93,1.4286041]
[1748040617691,0.30300734,660.05,659.0,1.4286041]
[1748040621602,0.30300734,660.05,659.12,1.4286041]
[1748040624402,0.30300734,660.05,659.09,1.4286041]
[1748040627199,0.30300734,660.05,659.23,1.4286041]
[1748040629707,0.30300734,660.05,659.27,1.4286041]
[1748040633110,0.30300734,660.05,659.28,1.4286041]
[1748040635917,0.30300734,660.05,659.25,1.4286041]
[1748040638914,0.30300734,660.05,659.12,2.13178245]
[1748040638915,0.30300734,660.05,659.16,1.4286041]
[1748040639920,1.11581188,660.48,659.16,1.4286041]
[1748040640122,0.30281466,660.47,659.16,1.4286041]
[1748040641922,0.30281466,660.47,658.68,0.30363757]
[1748040641923,0.30281466,660.47,659.14,1.4286041]
[1748040643725,1.07711174,660.46,659.14,1.4286041]
[1748040643914,1.07711174,660.45,659.14,1.4286041]
[1748040644119,1.07711174,660.44,659.14,1.4286041]
[1748040644320,1.07711174,660.43,659.14,1.4286041]
[1748040644516,1.08035114,660.42,659.14,1.4286041]
[1748040644723,0.30281466,660.47,659.04,1.4286041]
[1748040644926,1.0803558,660.46,659.05,0.30346711]
[1748040645127,1.0803558,660.45,659.05,0.30346711]
[1748040645325,0.30282841,660.44,659.05,0.30346711]
[1748040645522,1.0803558,660.43,659.05,0.30346711]
[1748040645716,0.30283758,660.42,659.05,0.30346711]
[1748040645921,1.0803558,660.41,659.05,0.30346711]
[1748040646117,1.38320255,660.4,659.05,0.30346711]
[1748040646420,1.38316508,660.39,659.05,0.30346711]
[1748040646720,1.38316967,660.38,659.05,0.30346711]
[1748040646920,1.38317425,660.37,659.05,0.30346711]
[1748040647120,0.3028651,660.36,659.05,0.30346711]
[1748040651325,0.3028651,660.36,659.23,1.4286041]
[1748040653734,1.08207517,660.35,659.23,1.4286041]
[1748040653934,1.38494944,660.34,659.23,1.4286041]
[1748040654132,1.08207517,660.33,659.16,1.4286041]
[1748040654327,1.5462147,660.32,659.16,1.4286041]
[1748040654531,1.84910273,660.31,659.16,1.4286041]
[1748040654835,1.84910732,660.3,659.16,1.4286041]
[1748040655033,1.84911191,660.29,659.16,1.4286041]
[1748040655228,1.5462147,660.28,659.16,1.4286041]
[1748040655534,1.54611401,660.27,659.16,1.4286041]
[1748040655730,1.54611401,660.26,659.16,1.4286041]
[1748040655935,0.30290179,660.28,659.16,1.4286041]
[1748040656129,1.54599664,660.27,659.16,1.4286041]
[1748040656330,1.54599664,660.26,659.16,1.4286041]
[1748040656536,1.11581188,660.19,659.05,0.30346711]
[1748040656728,1.38486121,660.18,659.05,0.30346711]
[1748040656930,1.38486579,660.17,659.05,0.30346711]
[1748040657138,1.38487038,660.16,659.05,0.30346711]
[1748040657330,1.08239785,660.15,659.05,0.30346711]
[1748040657530,1.38536388,660.14,659.05,0.30346711]
[1748040657734,1.38536847,660.13,659.05,0.30346711]
[1748040657938,1.38537306,660.12,659.05,0.30346711]
[1748040658133,1.38557741,660.11,659.05,0.30346711]
[1748040658332,0.30298439,660.1,659.05,0.30346711]
[1748040659637,0.30298439,660.1,659.02,1.4286041]
[1748040661944,0.30298439,660.1,659.07,1.4286041]
[1748040664939,0.30298439,660.1,659.1,1.4286041]
[1748040667338,0.30298439,660.1,659.18,1.4286041]
[1748040669942,1.08725114,660.09,659.18,1.4286041]
[1748040670143,0.30298439,660.1,659.18,1.4286041]
[1748040670343,1.08736193,660.09,659.18,1.4286041]
[1748040670642,1.08734016,660.08,659.18,1.4286041]
[1748040670836,1.11581188,660.09,659.27,1.4286041]
[1748040671040,1.08734453,660.08,659.27,1.4286041]
[1748040671242,1.11581188,660.09,659.27,1.4286041]
[1748040671442,1.08745032,660.08,659.27,1.4286041]
[1748040671639,1.11581188,660.09,659.27,1.4286041]
[1748040671840,1.08744802,660.08,659.27,1.4286041]
[1748040672043,1.11581188,660.09,659.27,1.4286041]
[1748040672338,1.08754324,660.08,659.27,1.4286041]
[1748040672538,1.11581188,660.09,659.27,1.4286041]
[1748040672745,1.08751095,660.08,659.27,1.4286041]
[1748040672945,1.11581188,660.09,659.27,1.4286041]
[1748040673147,1.08753029,660.08,659.27,1.4286041]
[1748040673347,1.11581188,660.09,659.27,1.4286041]
[1748040673549,1.087668,660.08,659.27,1.4286041]
[1748040673747,1.11581188,660.09,659.27,1.4286041]
[1748040673949,1.08767338,660.08,659.27,1.4286041]
[1748040674248,1.11581188,660.07,659.29,1.4286041]
[1748040676848,1.41879627,660.1,659.31,1.4286041]
[1748040680050,0.30298439,660.1,659.39,1.4286041]
[1748040683051,0.30298439,660.1,659.46,1.4286041]
[1748040688157,1.11581188,660.27,659.46,1.4286041]
[1748040689262,1.11581188,660.47,659.46,1.4286041]
[1748040689455,1.55519348,660.46,659.46,1.4286041]
[1748040689654,1.0883751,660.45,659.46,1.4286041]
[1748040689858,1.0883751,660.44,659.46,1.4286041]
[1748040690056,1.0883751,660.43,659.46,1.4286041]
[1748040690355,1.11581188,660.47,659.46,1.4286041]
[1748040692257,1.11581188,660.57,659.46,1.4286041]
[1748040692458,1.08695334,660.56,659.6,1.4286041]
[1748040692663,1.08695334,660.55,659.6,1.4286041]
[1748040692863,1.08695334,660.54,659.6,1.4286041]
[1748040693063,1.11581188,660.57,659.6,1.4286041]
[1748040693257,1.08654137,660.56,659.6,1.4286041]
[1748040693460,1.08654137,660.55,659.6,1.4286041]
[1748040693658,1.11581188,660.57,659.6,1.4286041]
[1748040695167,1.11581188,660.74,659.67,1.4286041]
[1748040695365,0.3026955,660.73,659.67,1.4286041]
[1748040698262,0.3026955,660.73,659.88,1.4286041]
[1748040701473,0.3026955,660.73,659.81,1.4286041]
[1748040704972,0.3026955,660.73,659.62,1.4286041]
[1748040707075,0.3026955,660.73,659.58,1.4286041]
[1748040710075,0.3026955,660.73,659.66,1.4286041]
[1748040713780,0.3026955,660.73,659.65,1.4286041]
[1748040714381,0.3026955,660.73,659.66,0.30318649]
[1748040716981,0.3026955,660.73,659.69,1.4286041]
[1748040719982,0.3026955,660.73,659.66,1.73179059]
[1748040722080,0.3026955,660.73,659.66,0.30318649]
[1748040727383,1.07901204,660.72,659.66,0.30318649]
[1748040727588,1.07901204,660.71,659.66,0.30318649]
[1748040727788,1.07901204,660.7,659.66,0.30318649]
[1748040728088,1.07901204,660.69,659.66,0.30318649]
[1748040728286,1.07901204,660.68,659.66,0.30318649]
[1748040728486,1.07901204,660.67,659.41,1.4286041]
[1748040728689,1.38173961,660.66,659.41,1.4286041]
[1748040728883,1.07901204,660.65,659.41,1.4286041]
[1748040729289,1.38174419,660.65,659.41,1.4286041]
[1748040729488,1.38264251,660.64,659.41,1.4286041]
[1748040729691,1.38264709,660.63,659.23,1.4286041]
[1748040729988,1.38265167,660.62,659.24,0.30337964]
[1748040730288,1.38265625,660.61,659.24,0.30337964]
[1748040730484,1.38266084,660.6,659.24,0.30337964]
[1748040730688,1.38266542,660.59,659.24,0.30337964]
[1748040730990,1.38267,660.58,659.24,0.30337964]
[1748040731184,1.38336768,660.57,659.24,0.30337964]
[1748040731390,1.38337226,660.56,659.24,0.30337964]
[1748040731585,1.08059886,660.55,659.24,0.30337964]
[1748040731787,0.3027734,660.56,659.24,0.30337964]
[1748040731991,1.08059191,660.55,659.24,0.30337964]
[1748040732192,0.3027734,660.56,659.24,0.30337964]
[1748040732393,1.08088608,660.55,659.24,0.30337964]
[1748040732688,0.3027734,660.56,659.24,0.30337964]
[1748040733992,0.3027734,660.56,659.34,1.4286041]
[1748040736193,1.08275385,660.55,659.34,1.4286041]
[1748040736396,0.3027734,660.56,659.34,1.4286041]
[1748040736599,1.08273633,660.55,659.32,1.4286041]
[1748040736798,0.3027734,660.56,659.32,1.4286041]
[1748040736998,1.08280287,660.55,659.32,1.4286041]
[1748040737202,0.3027734,660.56,659.32,1.4286041]
[1748040737402,1.08317719,660.55,659.32,1.4286041]
[1748040737603,1.08323813,660.54,659.32,1.4286041]
[1748040737898,0.3027734,660.56,659.32,1.4286041]
[1748040738104,1.08323331,660.55,659.32,1.4286041]
[1748040738302,0.3027734,660.56,659.32,1.4286041]
[1748040738502,1.08346959,660.55,659.32,1.4286041]
[1748040738701,1.08346959,660.54,659.32,1.4286041]
[1748040738902,0.3027734,660.56,659.32,1.4286041]
[1748040739102,1.08351243,660.55,659.32,1.4286041]
[1748040739301,1.08351243,660.54,659.32,1.4286041]
[1748040739502,0.3027734,660.56,659.32,1.4286041]
[1748040740403,0.3027734,660.56,659.33,1.4286041]
[1748040743102,0.3027734,660.56,659.33,1.73194233]
[1748040743303,0.3027734,660.56,659.7,1.4286041]
[1748040747107,0.3027734,660.56,659.73,1.4286041]
[1748040747807,1.55699351,660.55,659.73,1.4286041]
[1748040748000,1.55699351,660.54,659.73,1.4286041]
[1748040748202,1.55699351,660.53,659.73,1.4286041]
[1748040748505,1.55699351,660.52,659.73,1.4286041]
[1748040748705,1.85978983,660.51,659.73,1.4286041]
[1748040748902,1.85979441,660.5,659.73,1.4286041]
[1748040749105,1.85982236,660.49,659.73,1.4286041]
[1748040749303,1.85982694,660.48,659.73,1.4286041]
[1748040749603,1.85983153,660.47,659.73,1.4286041]
[1748040749908,1.85983611,660.46,659.73,1.4286041]
[1748040750110,1.55701687,660.45,659.73,1.4286041]
[1748040750409,1.55701687,660.44,659.73,1.4286041]
[1748040750613,1.55683985,660.43,659.34,0.30333363]
[1748040750809,1.08636777,660.42,659.34,0.30333363]
[1748040751004,1.08636777,660.41,659.34,0.30333363]
[1748040751204,1.08636777,660.4,659.34,0.30333363]
[1748040751409,1.08636777,660.39,659.34,0.30333363]
[1748040751708,0.30284675,660.4,659.34,0.30333363]
[1748040751709,1.08636777,660.38,659.34,0.30333363]
[1748040751902,1.08636777,660.37,659.1,1.4286041]
[1748040752104,1.08636777,660.36,659.1,1.4286041]
[1748040752404,1.08636777,660.35,659.1,1.4286041]
[1748040752603,1.08636777,660.34,659.1,1.4286041]
[1748040752809,1.08636777,660.33,659.1,1.4286041]
[1748040753006,1.08636777,660.32,659.1,1.4286041]
[1748040753208,0.30286969,660.35,659.1,1.4286041]
[1748040753209,1.08636777,660.31,659.1,1.4286041]
[1748040753407,1.08636777,660.3,659.1,1.4286041]
[1748040753610,1.08636777,660.29,659.1,1.4286041]
[1748040753806,1.08636777,660.28,659.1,1.4286041]
[1748040754010,0.30286969,660.35,659.1,1.4286041]
[1748040754212,1.08476919,660.34,659.12,1.4286041]
[1748040754412,1.38760331,660.33,659.12,1.4286041]
[1748040754613,1.3876079,660.32,659.12,1.4286041]
[1748040754813,1.08472445,660.31,659.12,1.4286041]
[1748040755113,0.30288345,660.32,659.12,1.4286041]
[1748040757318,0.30288345,660.32,659.26,1.4286041]
[1748040760620,0.30288345,660.32,659.03,1.4286041]
[1748040762221,0.30288345,660.32,659.03,1.73208042]
[1748040763121,0.30288345,660.32,659.04,0.30347171]
[1748040763922,0.30288345,660.32,659.05,1.4286041]
[1748040764123,0.30288345,660.32,659.06,0.3034625]
[1748040766627,0.30288345,660.32,659.16,1.4286041]
[1748040768129,0.30288345,660.32,659.17,0.30341186]
[1748040771026,0.30288345,660.32,659.42,1.4286041]
[1748040773225,0.30288345,660.32,659.41,1.4286041]
[1748040777031,0.30288345,660.32,659.49,1.4286041]
[1748040778931,1.11581188,660.59,659.49,1.4286041]
[1748040780432,1.11581188,660.86,659.73,1.4286041]
[1748040780626,1.55853411,660.85,659.73,1.4286041]
[1748040780825,1.55853411,660.84,659.73,1.4286041]
[1748040781025,1.08745676,660.83,659.73,1.4286041]
[1748040781226,1.08745676,660.82,659.73,1.4286041]
[1748040781430,1.08745676,660.81,659.73,1.4286041]
[1748040781628,1.08745676,660.8,659.73,1.4286041]
[1748040781826,1.08745676,660.79,659.73,1.4286041]
[1748040782031,1.08745676,660.78,659.73,1.4286041]
[1748040782231,1.08745676,660.77,659.73,1.4286041]
[1748040782431,1.08745676,660.76,659.73,1.4286041]
[1748040782635,1.08745676,660.75,659.73,1.4286041]
[1748040782933,1.41844783,660.86,659.73,1.4286041]
[1748040783134,1.55856297,660.85,659.73,1.4286041]
[1748040783433,1.55856297,660.84,659.73,1.4286041]
[1748040783629,1.55856297,660.83,659.73,1.4286041]
[1748040783834,1.55856297,660.82,659.73,1.4286041]
[1748040784133,1.55856297,660.81,659.73,1.4286041]
[1748040784329,1.41844783,660.86,659.73,1.4286041]
[1748040784534,1.86161205,660.85,659.73,1.4286041]
[1748040784734,1.86161663,660.84,659.73,1.4286041]
[1748040784935,1.86162121,660.83,659.73,1.4286041]
[1748040785133,1.55897152,660.82,659.73,1.4286041]
[1748040785328,1.55897152,660.81,659.73,1.4286041]
[1748040785528,1.08768267,660.8,659.73,1.4286041]
[1748040785728,1.08768267,660.79,659.73,1.4286041]
[1748040785932,1.08768267,660.78,659.73,1.4286041]
[1748040786133,1.08768267,660.77,659.73,1.4286041]
[1748040786329,1.08768267,660.76,659.73,1.4286041]
[1748040786531,1.08768267,660.75,659.74,1.4286041]
[1748040786828,1.08768267,660.74,659.74,1.4286041]
[1748040787030,1.08768267,660.73,659.74,1.4286041]
[1748040787231,1.08771006,660.72,659.74,1.4286041]
[1748040787432,0.30264969,660.83,659.74,1.4286041]
[1748040787633,1.55884732,660.82,659.74,1.4286041]
[1748040787832,1.55884732,660.81,659.74,1.4286041]
[1748040788030,1.08762728,660.8,659.74,1.4286041]
[1748040788234,1.08762728,660.79,659.74,1.4286041]
[1748040788430,1.08762728,660.78,659.74,1.4286041]
[1748040788632,1.08762728,660.77,659.74,1.4286041]
[1748040788832,1.08762728,660.76,659.74,1.4286041]
[1748040789032,0.30264969,660.83,659.74,1.4286041]
[1748040789334,2.20330731,660.82,659.83,1.4286041]
[1748040789529,1.08749543,660.81,659.83,1.4286041]
[1748040789729,1.08731261,660.8,659.83,1.4286041]
[1748040789932,1.08731261,660.79,659.83,1.4286041]
[1748040790136,1.08731261,660.78,659.83,1.4286041]
[1748040790334,1.08731261,660.77,659.83,1.4286041]
[1748040790640,1.11581188,660.82,659.83,1.4286041]
[1748040790836,1.08716501,660.81,659.83,1.4286041]
[1748040791037,1.08716501,660.8,659.83,1.4286041]
[1748040791237,1.08716501,660.79,659.83,1.4286041]
[1748040791437,1.08716501,660.78,659.83,1.4286041]
[1748040791638,1.08716501,660.77,659.83,1.4286041]
[1748040791839,1.11581188,660.82,659.83,1.4286041]
[1748040792039,1.08699525,660.81,659.83,1.4286041]
[1748040792237,1.08699525,660.8,659.83,1.4286041]
[1748040792435,1.08699525,660.79,659.81,1.4286041]
[1748040792638,1.08699525,660.78,659.81,1.4286041]
[1748040792933,1.08699525,660.77,659.81,1.4286041]
[1748040793139,1.11581188,660.82,659.81,1.4286041]
[1748040793337,1.08684755,660.81,659.81,1.4286041]
[1748040793539,1.08684755,660.8,659.81,1.4286041]
[1748040793737,1.08684755,660.79,659.81,1.4286041]
[1748040793937,1.08684755,660.78,659.81,1.4286041]
[1748040794244,1.11581188,660.82,659.81,1.4286041]
[1748040794441,1.08670968,660.81,659.81,1.4286041]
[1748040794741,1.08670968,660.8,659.81,1.4286041]
[1748040794941,1.08670968,660.79,659.81,1.4286041]
[1748040795141,1.08656702,660.78,659.81,1.4286041]
[1748040795441,1.08656702,660.77,659.79,1.4286041]
[1748040795643,0.30264969,660.83,659.79,1.4286041]
[1748040795846,1.08639905,660.82,659.79,1.4286041]
[1748040796142,1.08639905,660.81,659.79,1.4286041]
[1748040796339,1.08639905,660.8,659.79,1.4286041]
[1748040796543,1.08639905,660.79,659.79,1.4286041]
[1748040796737,1.08639905,660.78,659.79,1.4286041]
[1748040796937,1.08577571,660.77,659.79,1.4286041]
[1748040797141,1.85872711,660.76,659.79,1.4286041]
[1748040797341,1.85873169,660.75,659.79,1.4286041]
[1748040797543,1.3883521,660.74,659.79,1.4286041]
[1748040797743,1.85864053,660.73,659.79,1.4286041]
[1748040797944,1.85864511,660.72,659.79,1.4286041]
[1748040798145,1.85864969,660.71,659.79,1.4286041]
[1748040798348,1.85865427,660.7,659.79,1.4286041]
[1748040798547,1.85865885,660.69,659.5,1.4286041]
[1748040798746,1.55572733,660.68,659.5,1.4286041]
[1748040798946,1.55572733,660.67,659.5,1.4286041]
[1748040799145,1.08540849,660.66,659.5,1.4286041]
[1748040799346,1.08540849,660.65,659.5,1.4286041]
[1748040799642,1.08540849,660.64,659.5,1.4286041]
[1748040799846,1.08540849,660.63,659.5,1.4286041]
[1748040800046,1.08540849,660.62,659.5,1.4286041]
[1748040800245,1.08540849,660.61,659.5,1.4286041]
[1748040800444,1.08540849,660.6,659.5,1.4286041]
[1748040800648,0.30271382,660.69,659.5,1.4286041]
[1748040800849,1.08542908,660.68,659.5,1.4286041]
[1748040801043,0.30271382,660.69,659.5,1.4286041]
[1748040801044,1.08542908,660.67,659.5,1.4286041]
[1748040801248,1.08542908,660.66,659.5,1.4286041]
[1748040801448,1.08542908,660.65,659.5,1.4286041]
[1748040801650,1.08542908,660.64,659.58,1.4286041]
[1748040801851,1.08542908,660.63,659.58,1.4286041]
[1748040802054,0.30271382,660.69,659.58,1.4286041]
[1748040802246,1.08551115,660.68,659.58,1.4286041]
[1748040802448,1.08551115,660.67,659.58,1.4286041]
[1748040802646,1.08551115,660.66,659.58,1.4286041]
[1748040802846,1.08555389,660.65,659.58,1.4286041]
[1748040803051,0.30271382,660.69,659.58,1.4286041]
[1748040803248,1.08554785,660.68,659.58,1.4286041]
[1748040803451,1.08554785,660.67,659.58,1.4286041]
[1748040803651,1.08554785,660.66,659.58,1.4286041]
[1748040803852,0.30271382,660.69,659.58,1.4286041]
[1748040804052,1.08554291,660.68,659.58,1.4286041]
[1748040804253,1.08554606,660.67,659.58,1.4286041]
[1748040804453,1.08554606,660.66,659.58,1.4286041]
[1748040804654,0.30271382,660.69,659.58,1.4286041]
[1748040804849,1.085558,660.68,659.58,1.4286041]
[1748040805054,1.085558,660.67,659.58,1.4286041]
[1748040805254,1.085558,660.66,659.58,1.4286041]
[1748040805455,1.085558,660.65,659.58,1.4286041]
[1748040805654,1.085558,660.64,659.58,1.4286041]
[1748040805856,1.085558,660.63,659.58,1.4286041]
[1748040806050,1.08545925,660.62,659.58,1.4286041]
[1748040806254,1.08545925,660.61,659.58,1.4286041]
[1748040806549,1.08545925,660.6,659.58,1.4286041]
[1748040806752,0.30271382,660.69,659.58,1.4286041]
[1748040806753,1.08545925,660.59,659.58,1.4286041]
[1748040806954,1.08545925,660.58,659.58,1.4286041]
[1748040807155,0.30271382,660.69,659.58,1.4286041]
[1748040807349,1.55533233,660.68,659.58,1.4286041]
[1748040807552,1.85805532,660.67,659.58,1.4286041]
[1748040807753,2.50399302,660.66,659.55,1.4286041]
[1748040808055,1.85807188,660.65,659.55,1.4286041]
[1748040808256,1.85807647,660.64,659.55,1.4286041]
[1748040808452,1.85811214,660.63,659.55,1.4286041]
[1748040808652,1.08545357,660.62,659.55,1.4286041]
[1748040811453,1.0857607,660.61,659.55,1.4286041]
[1748040811653,1.0857607,660.6,659.55,1.4286041]
[1748040811858,1.0857607,660.59,659.58,1.4286041]
[1748040812057,1.0857607,660.58,659.58,1.4286041]
[1748040812255,1.11581188,660.62,659.58,1.4286041]
[1748040812256,1.0857607,660.57,659.58,1.4286041]
[1748040812451,1.0857607,660.56,659.58,1.4286041]
[1748040812653,1.11581188,660.62,659.58,1.4286041]
[1748040812858,1.08603648,660.61,659.58,1.4286041]
[1748040813158,1.08603648,660.6,659.58,1.4286041]
[1748040813356,1.08603648,660.59,659.58,1.4286041]
[1748040813556,1.11581188,660.62,659.58,1.4286041]
[1748040813557,1.08603648,660.58,659.58,1.4286041]
[1748040813757,1.08603648,660.57,659.58,1.4286041]
[1748040813952,1.11581188,660.62,659.58,1.4286041]
[1748040814154,1.08630555,660.61,659.58,1.4286041]
[1748040814357,1.08630555,660.6,659.58,1.4286041]
[1748040814558,1.08630555,660.59,659.58,1.4286041]
[1748040814859,1.08630555,660.58,659.58,1.4286041]
[1748040815160,1.08628112,660.57,659.57,1.4286041]
[1748040815353,1.08628112,660.56,659.57,1.4286041]
[1748040815557,1.08628112,660.55,659.57,1.4286041]
[1748040815852,1.08628112,660.54,659.57,1.4286041]
[1748040816057,1.08628112,660.53,659.57,1.4286041]
[1748040816258,1.08628112,660.52,659.57,1.4286041]
[1748040816458,1.11581188,660.6,659.57,1.4286041]
[1748040816660,1.55679578,660.59,659.57,1.4286041]
[1748040816859,1.11581188,660.6,659.57,1.4286041]
[1748040816860,1.55679578,660.58,659.57,1.4286041]
[1748040817060,1.08647067,660.57,659.57,1.4286041]
[1748040817253,1.08647067,660.56,659.57,1.4286041]
[1748040817457,1.08647067,660.55,659.57,1.4286041]
[1748040817654,1.08647067,660.54,659.57,1.4286041]
[1748040817859,1.08647067,660.53,659.57,1.4286041]
[1748040818055,1.08647067,660.52,659.57,1.4286041]
[1748040818253,1.11581188,660.6,659.57,1.4286041]
[1748040818455,1.55729775,660.59,659.57,1.4286041]
[1748040818654,1.55740685,660.58,659.57,1.4286041]
[1748040818855,1.08682134,660.57,659.57,1.4286041]
[1748040819054,1.08682134,660.56,659.57,1.4286041]
[1748040819255,1.08682134,660.55,659.59,1.4286041]
[1748040819458,1.08682134,660.54,659.59,1.4286041]
[1748040819657,1.08682134,660.53,659.59,1.4286041]
[1748040819858,1.08682134,660.52,659.59,1.4286041]
[1748040820057,1.08682134,660.51,659.59,1.4286041]
[1748040820254,1.11581188,660.57,659.59,1.4286041]
[1748040820454,1.5584636,660.56,659.59,1.4286041]
[1748040820659,1.08763496,660.55,659.59,1.4286041]
[1748040820855,1.08763496,660.54,659.59,1.4286041]
[1748040821161,1.08763496,660.53,659.59,1.4286041]